Cogmind - Beta 11.1 @@@ ROGUE MODE // 2022.06.18 @ 23:38:48 Player: leiavoia Result: Destroyed by B-99 Colossus with Multirail Performance ------------- Evolutions (9) 4500 Regions Visited (28) 5600 Robots Destroyed (825) 4125 Value Destroyed (38584) 38584 Prototype IDs (84) 1680 Alien Tech Used (3) 600 Bonus (35852) 35852 TOTAL SCORE: 90941 Bonus ------- Triggered High Security 2000 High Alert Combat Kills 22931 Follower Combat Kills 2417 Network Hubs Disabled 400 Met Data Miner 300 Met Warlord at Base 500 MAIN.C Attacked Warlord 500 Warlord Defense Kills 94 Built Enhanced Grunts 300 A7 Reached Mainframe 300 Met R17 at Cetus 500 Hacked Protovariant 500 Met R17 at Research 2000 Met Warlord at Research 2000 Scanned by Researcher 500 Met Sigix 2000 Friendly Fire -1390 Cogmind --------- Core Integrity 0/1600 Matter 114/300 Energy 99/100 System Corruption 14% Temperature Cool (0) Movement Core (50) Location -1/Access Parts ------- > --- POWER (2) -------- (None) > --- PROPULSION (6) --- (None) > --- UTILITY (12) ----- (None) > --- WEAPON (5) ------- (None) > --- INVENTORY (5) ---- Core Cannon Sigix Containment Pod Peak State ------------ > --- POWER ------------ Vortex Chain Reactor > --- PROPULSION ------- Biometal Heavy Treads Biometal Heavy Treads Biometal Heavy Treads > --- UTILITY ---------- Coolant Network Huge Storage Unit Experimental Targeting Computer Experimental Targeting Computer Experimental Core Analyzer Advanced Phase Shifter Heavy Armor Plating Beam Splitter Advanced Force Field > --- WEAPON ----------- Cooled Phase Cannon Improved Matter Neutralizer Enhanced Nova Cannon Hellfire Missile Launcher > --- INVENTORY -------- Quantum Reactor Quantum Reactor Armored Heavy Treads Experimental Cooling System Huge Storage Unit Energy Well Matter Compressor Advanced Terrain Scanner Ghost Barrier Long-range Tractor Beam High-powered Disruptor Cannon Cooled Phase Cannon Cooled Phase Cannon Cooled Phase Cannon Enhanced Nova Cannon Core Cannon Antimatter Cannon Hypervelocity Mass Driver Hellfire Missile Launcher Hellfire Missile Launcher Sigix Containment Pod [Rating: 204] Favorites ----------- Power Cooled Ion Engine Engine Cooled Ion Engine Power Core Enhanced Fission Core Reactor Quantum Reactor Propulsion Improved Treads Treads Improved Treads Leg Aluminum Leg Wheel Armored Wheel Hover Unit Improved Gyrokinetic Inverter Utility Experimental Targeting Computer Device Improved Cooling System Storage Huge Storage Unit Processor Experimental Targeting Computer Hackware Improved Hacking Suite Protection Centrium Medium Armor Plating Artifact Phase Armor Weapon Antimatter Cannon Energy Gun Gatling Laser Energy Cannon Neutron Cannon Ballistic Gun Enhanced Autogun Ballistic Cannon Antimatter Cannon Launcher Heavy Missile Launcher Impact Weapon Heavy Flail Slashing Weapon Sigix Broadsword Build | -11 -10 -10 -9 -9 -8 -7 -7 -7 -7 -6 -6 -6 -6 -6 -6 -6 -6 -5 -5 -5 -5 -4 -4 -3 -3 -2 -2 -1 ------- Run | Scr Mat Min Mat Min Mat Fac Low Low Dat Pro Fac Was Fac Ext Cet Arc Hub Fac Upp Upp War Pro Fac Res Qua Res Tes Acc Slots Evolved 18 | . . . 2 . 2 2 . . . . 2 . . . . . . 2 . . . . 2 2 . 2 . 2 Power 1 | . . . . . . . . . . . . . . . . . . . . . . . 1 . . . . . Propulsion 4 | . . . 1 . . 1 . . . . . . . . . . . 2 . . . . . . . . . . Utility 10 | . . . 1 . 2 . . . . . 2 . . . . . . . . . . . 1 1 . 2 . 1 Weapon 3 | . . . . . . 1 . . . . . . . . . . . . . . . . . 1 . . . 1 Parts Attached 701 | 1 8 2 58 3 39 108 11 25 2 9 9 1 29 21 7 4 10 28 10 14 15 19 62 19 59 37 55 36 Power 35 | . 1 . 4 . 2 5 . 1 . . 1 . 1 . 1 . . 4 . 2 1 2 2 1 2 . . 5 Engine 11 | . 1 . 4 . 2 3 . . . . . . 1 . . . . . . . . . . . . . . . Core 10 | . . . . . . 2 . 1 . . 1 . . . . . . 2 . 2 . 1 1 . . . . . Reactor 14 | . . . . . . . . . . . . . . . 1 . . 2 . . 1 1 1 1 2 . . 5 Propulsion 86 | . 2 . 17 . 7 15 1 6 . . 2 1 2 1 . 1 4 4 1 1 . 5 4 . 3 2 3 4 Treads 67 | . 2 . 14 . 7 9 . 4 . . 1 . 2 1 . 1 4 2 1 1 . 3 4 . 3 2 3 3 Leg 1 | . . . 1 . . . . . . . . . . . . . . . . . . . . . . . . . Wheel 17 | . . . 2 . . 6 1 2 . . 1 1 . . . . . 2 . . . 2 . . . . . . Hover 1 | . . . . . . . . . . . . . . . . . . . . . . . . . . . . 1 Flight . | . . . . . . . . . . . . . . . . . . . . . . . . . . . . . Utility 377 | 1 4 . 18 1 17 56 7 10 1 3 6 . 15 9 3 3 4 15 4 9 10 6 45 12 43 30 33 12 Device 242 | 1 2 . 10 . 3 43 4 3 1 . 4 . 8 4 . . 3 7 2 4 8 5 26 9 34 23 28 10 Storage 20 | . 2 . 2 . 3 3 1 1 . . . . 1 1 . . . 1 . . . . 1 1 . 2 . 1 Processor 15 | . . . . . 1 . . . . . 1 . 4 . . . . 1 . . . . 2 1 1 3 1 . Hackware 3 | . . . . . . . . . . . . . . . . 3 . . . . . . . . . . . . Protection 95 | . . . 6 1 10 10 2 6 . 3 1 . 2 4 3 . 1 6 2 5 2 1 16 1 6 2 4 1 Artifact 2 | . . . . . . . . . . . . . . . . . . . . . . . . . 2 . . . Weapon 203 | . 1 2 19 2 13 32 3 8 1 6 . . 11 11 3 . 2 5 5 2 4 6 11 6 11 5 19 15 Energy Gun 32 | . . 1 4 . 8 9 . . . . . . 6 2 . . . . . . 1 . . . 1 . . . Energy Cannon 44 | . . . 2 . 1 1 . 1 . . . . 2 3 2 . . . 3 . . 2 5 4 2 3 8 5 Ballistic Gun 24 | . 1 . 6 2 2 6 . 2 1 . . . . . 1 . . . . . . . . 1 2 . . . Ballistic Cannon 39 | . . . 1 . . 4 2 . . 2 . . 1 2 . . 2 3 . 1 3 1 3 1 2 2 4 5 Launcher 59 | . . 1 6 . 2 12 1 2 . 3 . . 2 4 . . . 2 2 1 . 3 3 . 3 . 7 5 Special Weapon . | . . . . . . . . . . . . . . . . . . . . . . . . . . . . . Impact Weapon 4 | . . . . . . . . 3 . 1 . . . . . . . . . . . . . . . . . . Slashing Weapon 1 | . . . . . . . . . . . . . . . . . . . . . . . . . 1 . . . Piercing Weapon . | . . . . . . . . . . . . . . . . . . . . . . . . . . . . . Special Melee Weapon . | . . . . . . . . . . . . . . . . . . . . . . . . . . . . . Unidentified Prototypes 34 | . . . 2 . 2 1 . . . . 1 . 3 1 2 . 2 2 . . 4 1 1 . 4 3 3 2 Corrupted Parts 2 | . . . . . . . . . . . . . . . . . 1 . 1 . . . . . . . . . System Corruption 13 | . . . . . . . . . . . . . . . . . 11 . 2 . . . . . . . . . Parts Lost 98 | . 2 1 6 . 5 13 1 13 . 3 . . 1 . . . 2 2 2 . . . 2 . 4 2 9 30 Power 10 | . 1 . . . 2 1 . 2 . . . . . . . . . . . . . . . . . . . 4 Propulsion 28 | . . . 4 . 2 3 . 4 . 1 . . 1 . . . 2 1 2 . . . 1 . . . . 7 Utility 40 | . 1 . 1 . 1 6 1 4 . 1 . . . . . . . 1 . . . . . . 4 2 7 11 Weapon 20 | . . 1 1 . . 3 . 3 . 1 . . . . . . . . . . . . 1 . . . 2 8 Highest Loss Streak 14 | . 1 1 2 . 2 10 1 4 . 2 . . 1 . . . 1 1 2 . . . 1 . 2 1 2 14 To Critical Strikes 3 | . . . . . . . . 1 . . . . . . . . . . 1 . . . . . . . . 1 Average Slot Usage (%) 90 | . 98 99 99 100 99 99 89 83 77 83 93 100 92 95 100 99 99 88 87 84 87 87 86 85 81 81 75 61 Engine 4 | . 13 14 10 11 8 5 . . . . 2 . 5 6 . . . . . . . . . . . . . . Core 1 | . . . . . . 1 7 2 . . . 6 . . . . . . 5 5 4 1 5 . . . . . Reactor 1 | . . . . . . . . . . . . . . . 5 6 6 4 . . . 3 5 8 6 4 4 5 Treads 18 | . 11 28 27 33 26 19 . 14 23 17 13 6 7 13 13 13 17 22 22 19 23 22 18 14 14 13 12 11 Wheel 4 | . . . 4 . . 10 30 14 7 7 11 20 16 13 13 13 8 . . . . . . . . . . . Device 11 | . 13 14 10 . 9 13 11 1 . 7 15 20 13 6 6 6 9 11 10 6 6 12 10 14 17 25 17 12 Storage 7 | . 14 14 11 11 9 7 7 6 7 7 6 6 6 6 6 6 6 5 5 5 5 5 5 4 4 4 4 6 Processor 5 | . . . . . 1 1 . . . . 5 6 12 20 18 8 6 8 11 11 9 5 6 4 9 10 13 5 Protection 12 | . . . 11 22 25 15 7 18 23 19 15 13 7 7 14 13 10 9 11 15 16 15 17 18 8 5 4 2 Energy Gun 4 | . . 9 1 . 15 13 2 . . . . . 6 5 4 . . . . . . 2 . . . . . . Energy Cannon 3 | . . . 1 . . . 1 . . . . . 8 12 13 13 6 2 4 5 4 . 4 8 7 8 10 9 Ballistic Gun 4 | . 28 14 15 22 2 2 . 5 1 7 6 6 . . 1 6 . . . . . . . 4 1 . . . Ballistic Cannon 4 | . . . . . . 1 10 4 . 3 6 6 . . . . 11 14 11 10 11 12 9 4 5 7 4 3 Launcher 1 | . . 3 2 . . 4 6 3 . . . . . . . . . . . . . . . . 1 . 1 2 Naked Turns 44 | . . . . . . . . . . . . . . . . . . . . . . . . . . . . 44 Heaviest Build 247 | 13 29 30 66 64 78 86 246 247 70 73 81 78 96 147 160 159 145 154 154 154 171 163 187 212 214 199 202 213 Greatest Support 225 | 20 40 40 69 66 68 91 46 46 12 12 28 44 44 28 28 28 140 210 210 196 196 196 225 225 225 210 225 206 Greatest Overweight (x) 12 | . 1 . 4 . 1 6 5 7 5 6 6 1 3 5 5 5 12 8 . . . 12 1 . 1 1 1 1 Average Overweight (x) 1 | . . . 1 . . 1 2 5 5 5 2 1 2 3 4 4 5 . . . . . . . . . . . Largest Inventory Capacity 35 | 8 15 15 20 20 20 20 35 35 20 20 20 20 20 25 25 25 25 25 25 25 25 25 25 25 25 25 25 25 Average Capacity 21 | 8 14 15 16 20 19 20 25 25 20 20 20 20 20 22 25 25 25 25 25 25 25 25 25 25 25 25 25 23 Most Carried 33 | 6 15 15 20 20 20 20 28 33 15 19 20 20 20 25 25 25 25 25 25 25 25 25 25 25 25 25 25 25 Average Carried 21 | 6 13 14 16 20 19 19 20 20 15 17 19 20 19 22 24 24 24 24 24 24 24 24 24 24 24 24 24 19 Final Capacity 35 | 8 15 15 20 20 20 20 35 20 20 20 20 20 20 25 25 25 25 25 25 25 25 25 25 25 25 25 25 5 Final Carried 28 | 6 15 15 20 20 20 14 28 15 15 19 20 20 20 25 25 25 25 25 24 25 25 25 25 25 25 25 25 4 Class Distribution -------------------- 45% | Mutant 14% | Scavenger-Mutant 13% | Scavenger-Tank 6% | Tank 4% | Scavenger-Gunner 4% | Gunner Dominant Class ---------------- Mutant | -10/Materials Mutant | -10/Mines Mutant | -9/Materials Mutant | -9/Mines Mutant | -8/Materials Mutant | -7/Factory Mutant | -7/Lower Caves Derelict-Mutant | -7/Lower Caves Derelict-Mutant | -7/Data Miner Mutant | -6/Proximity Caves Mutant | -6/Factory Mutant | -6/Waste Mutant | -6/Factory Gunner | -6/Extension Commander-Gunner | -6/Cetus Commander-Mutant | -6/Archives Scavenger-Tank | -6/Hub_04(d) Scavenger-Gunner | -5/Factory Mutant | -5/Upper Caves Scavenger-Mutant | -5/Upper Caves Scavenger-Mutant | -5/Warlord Scavenger-Tank | -4/Proximity Caves Scavenger-Tank | -4/Factory Scavenger-Mutant | -3/Research Scavenger-Mutant | -3/Quarantine Scavenger-Mutant | -2/Research Scavenger-Gunner | -2/Testing Tank | -1/Access Resources | -11 -10 -10 -9 -9 -8 -7 -7 -7 -7 -6 -6 -6 -6 -6 -6 -6 -6 -5 -5 -5 -5 -4 -4 -3 -3 -2 -2 -1 ----------- Run | Scr Mat Min Mat Min Mat Fac Low Low Dat Pro Fac Was Fac Ext Cet Arc Hub Fac Upp Upp War Pro Fac Res Qua Res Tes Acc Matter Collected 22844 | 250 148 294 1832 24 749 2638 455 884 . 333 119 . 628 512 115 58 525 1200 354 378 547 1281 1771 218 1985 782 2561 2203 Remotely 8242 | . . . 229 . . 1459 . . . . . . . 318 . . 66 584 117 . 295 133 1112 . 1095 352 985 1497 Salvage Created 36273 | 113 285 181 2512 . 3232 4439 119 657 . 412 171 . 1324 2284 63 31 902 1027 272 399 28 1316 2184 304 2522 895 5838 4763 Parts 1510 | 6 25 11 199 . 134 247 2 22 . 5 3 . 57 65 2 5 21 29 16 20 . 29 88 4 99 31 223 167 Haulers Intercepted 28 | . 1 . 5 . 4 1 . . . . . . 2 3 . . 2 3 . . . . 1 2 1 2 1 . Recyclers Shooed 21 | . 1 . 1 . 2 7 . . . . 1 . 2 1 . . 1 2 . . . . 1 . . . . 2 Parts Field Recycled . | . . . . . . . . . . . . . . . . . . . . . . . . . . . . . Retrieved Matter . | . . . . . . . . . . . . . . . . . . . . . . . . . . . . . Parts Self-Destructed 95 | . . . . . . . 11 19 . 5 . . . . . . . . 13 15 . 32 . . . . . . Prevented 3 | . . . . . . . . . . . . . . . . . . . . 3 . . . . . . . . Kills | -11 -10 -10 -9 -9 -8 -7 -7 -7 -7 -6 -6 -6 -6 -6 -6 -6 -6 -5 -5 -5 -5 -4 -4 -3 -3 -2 -2 -1 ------- Run | Scr Mat Min Mat Min Mat Fac Low Low Dat Pro Fac Was Fac Ext Cet Arc Hub Fac Upp Upp War Pro Fac Res Qua Res Tes Acc Combat Hostiles Destroyed 663 | . 11 5 50 . 51 75 2 20 . 5 . . 15 21 1 . 19 17 13 12 1 20 51 1 52 12 102 107 Guns 146 | . 11 4 36 . 43 38 . 5 . . . . 2 1 . . . . . . . 2 . . 4 . . . Cannons 270 | . . . . . 4 2 2 3 . 1 . . 9 15 1 . 16 17 4 7 1 12 39 . 37 11 54 35 AOE 220 | . . 1 14 . 2 34 . 12 . 4 . . 1 1 . . 3 . 9 5 . 6 9 . 8 . 43 68 Classes Destroyed 27 | 2 4 1 5 . 4 1 . 1 . . . . . . . . . . . . . 1 1 . 1 2 3 1 Worker 53 | . . . 1 . 5 31 . . . . . . 4 . . . . 2 . . . . 2 . 2 . 1 5 Builder 60 | . . . 8 . 1 35 . . . . . . 2 1 . . . 3 . . . . 2 . . . 2 6 Tunneler 6 | 2 . 1 1 . . 2 . . . . . . . . . . . . . . . . . . . . . . Hauler 28 | . 1 . 5 . 4 1 . . . . . . 2 3 . . 2 3 . . . . 1 2 1 2 1 . Recycler 44 | 1 . . 3 . 5 14 . . . . 2 . 1 7 . . . 4 . . . . . . . . 1 6 Carrier 1 | . . . . . . . . . . . . . . . . . . . . . . . . . . . . 1 Mechanic 18 | . . . . . 1 7 . . . . . . . . . . . . . . . . 1 . 1 . 3 5 Operator 10 | . . . 1 . 3 2 . . . . . . 1 . . 1 . . . . . . 1 . . . 1 . Watcher 24 | . 1 . 5 . 3 1 . . . . . . 2 1 1 . . 2 . . . . 3 . 2 . 1 2 Swarmer 67 | . 9 3 8 . 6 3 . . . 1 . . 1 5 1 . . . 9 4 . 1 5 . . . . 11 Saboteur 12 | . . . . . . . . . . . . . . . . . . . . . . . 1 . 1 . 3 7 Grunt 289 | . 2 1 30 . 28 41 2 10 . 3 . . 6 7 . . 13 5 2 1 . 7 33 . 20 4 35 39 Brawler 31 | . . . . . 3 . . 3 . 1 . . 1 . . . 1 2 . . . . . . 2 . 7 11 Duelist 43 | . . . . . 3 8 . 2 . . . . . . . . 1 1 . . . . 2 . 4 . 12 10 Protector 25 | . . . 2 . 1 3 . 1 . . . . . . . . . 1 . . 1 4 . . 1 . 6 5 Researcher 4 | . . . . . . . . . . . . . . . . . . . . . . . . . 2 . 2 . Sentry 43 | . . . 10 . 8 3 . 1 . . . . . 6 . . 4 1 1 1 . 2 2 . . . 4 . Demolisher 5 | . . . . . . . . . . . . . . . . . . . . . . 4 . . . 1 . . Specialist 6 | . . . . . . . . . . . . . . . . . . . . . . . . . . . 6 . Hunter 39 | . . . . . 2 6 . 2 . . . . 3 . . . . 1 1 6 . . . . 2 2 7 7 Programmer 81 | . . . . . . 11 . . . . . . 4 1 . . . 6 . . . 1 8 . 19 2 19 10 Behemoth 5 | . . . . . . . . 1 . . . . . 2 . . . . . . . 1 . 1 . . . . Lightning 3 | . . . . . . . . . . . . . . . . . . . . . . . . . 3 . . . Investigator 4 | . . . . . . . . . . . . . . . . . . . . . . . . . . . 2 2 Striker 5 | . . . . . . . . . . . . . . . . . . . . . . . . . . 1 1 3 Executioner 6 | . . . . . . . . . . . . . . . . . . . . . . . . . . 2 . 4 Alpha 7 1 | . . . . . . . . . . . . . . . . . . . . . . . . . . . 1 . Decomposer 2 | . . . . . . . . 2 . . . . . . . . . . . . . . . . . . . . Packrat 4 | . . . . . . . 1 . . 3 . . . . . . . . . . . . . . . . . . Assembled 1 | . . 1 . . . . . . . . . . . . . . . . . . . . . . . . . . Savage 1 | . . . . . . . . . . . . . . . . . 1 . . . . . . . . . . . Troll 1 | . . . . . . . . . . . . . . . . . . . . . . . . . . . 1 . Best Kill Streak 34 | 3 4 3 7 . 6 13 2 10 . 3 1 . 7 9 1 1 5 6 6 4 1 5 9 1 25 9 23 34 Combat Bots Only 27 | . 4 3 6 . 4 12 2 10 . 3 . . 3 7 1 . 5 5 6 4 1 5 9 1 13 9 21 27 Max Kills in Single Turn 8 | 1 1 2 5 . 2 7 1 3 . 1 1 . 2 3 1 1 2 1 3 4 1 3 5 1 2 1 5 8 Gunslinging . | . . . . . . . . . . . . . . . . . . . . . . . . . . . . . Exploded 7 | . . 1 4 . 1 7 . 3 . 1 . . 1 1 . . 2 . 3 4 . 3 4 . 2 . 5 5 Melee . | . . . . . . . . . . . . . . . . . . . . . . . . . . . . . Uniques/NPCs Destroyed 1 | . . 1 . . . . . . . . . . . . . . . . . . . . . . . . . . YI-UF0 (-10/Mines) Combat | -11 -10 -10 -9 -9 -8 -7 -7 -7 -7 -6 -6 -6 -6 -6 -6 -6 -6 -5 -5 -5 -5 -4 -4 -3 -3 -2 -2 -1 -------- Run | Scr Mat Min Mat Min Mat Fac Low Low Dat Pro Fac Was Fac Ext Cet Arc Hub Fac Upp Upp War Pro Fac Res Qua Res Tes Acc Damage Taken 33422 | . 480 351 1628 . 2541 3639 107 2346 . 369 . . 462 735 55 . 765 1244 392 554 78 654 2737 45 3071 1269 3284 6616 Core 3552 | . 79 84 300 . 264 416 . 205 . . . . 36 43 . . 41 35 20 23 . 26 124 . 134 26 88 1608 Absorbed by Shields 6116 | . . . . . . . . . . . . . . 19 27 . 151 202 . . . 590 182 49 1410 471 921 2094 Reduced by Siege Mode 302 | . . . . . . . . . . . . . . . . . . . . 7 . 3 22 6 152 30 75 7 Redirected to Shielding 110 | . . . . . . . . 48 . . . . . . . . . . . . . . . . . . 9 53 Regen/Repaired (Parts) 1981 | . . . 133 . 481 . . . . . . . . 168 . . . 261 . . . . 938 . . . . . Core Remaining (%) 66 | 100 . 34 . 25 52 . . . . 11 . . . . . . 85 . . . . 89 89 . 89 . 92 . Volleys Fired 1770 | 20 62 35 153 2 203 272 7 51 . 12 9 . 46 73 10 2 37 68 24 23 13 95 116 22 121 45 142 107 Largest 5 | 2 2 2 2 2 2 3 2 3 . 2 1 . 3 3 3 2 3 3 3 3 2 3 3 4 4 4 4 5 Hottest 400 | 40 40 70 133 50 110 208 160 176 . 66 53 . 280 210 185 175 210 170 170 170 90 146 198 312 342 364 372 400 Shots Fired 3874 | 40 125 58 297 5 401 499 15 109 . 16 9 . 107 168 26 4 110 175 38 49 16 197 285 40 314 113 399 259 Gun 1406 | 40 125 57 250 5 376 358 3 27 . 6 . . 39 32 8 . 3 . . . . 28 . 6 43 . . . Cannon 2221 | . . . 30 . 21 46 12 67 . 3 9 . 68 133 18 4 107 174 33 45 16 169 278 34 256 113 375 210 Launcher 247 | . . 1 17 . 4 95 . 15 . 7 . . . 3 . . . 1 5 4 . . 7 . 15 . 24 49 Special . | . . . . . . . . . . . . . . . . . . . . . . . . . . . . . Kinetic 1673 | 40 125 43 225 5 59 93 10 84 . 9 9 . . 25 . . 70 164 13 26 6 129 168 12 117 54 128 59 Thermal 1873 | . . 14 42 . 338 311 5 10 . . . . 107 140 18 4 40 10 20 19 10 40 110 28 152 59 247 149 Explosive 247 | . . 1 17 . 4 95 . 15 . 7 . . . 3 . . . 1 5 4 . . 7 . 15 . 24 49 Electromagnetic 23 | . . . 13 . . . . . . . . . . . 8 . . . . . . . . . . . . 2 Entropic 58 | . . . . . . . . . . . . . . . . . . . . . . 28 . . 30 . . . Robot Hit Streak 39 | 7 14 8 17 . 16 24 11 17 . 7 5 . 15 20 15 14 27 18 8 14 6 28 32 15 21 10 31 39 Robot Miss Streak 7 | 1 5 6 4 6 7 6 2 4 . 4 3 . 3 2 1 . 1 2 1 2 1 3 3 2 3 3 4 3 Penetration Max 1 | . . . . . . . . 1 . . . . . 1 . . . . . . . 1 . . 1 . 1 1 Secondary Targets 8 | . . . . . 7 . . 1 . . . . . . . . . . . . . . . . . . . . Max Gunslinging Chain 1 | . . . . . 1 . . 1 . . . . . . . . . . . . . . . . . . . . Shots Hit Robots 2545 | 26 70 33 189 . 281 345 12 73 . 10 9 . 74 127 20 4 89 113 13 25 4 141 195 17 194 52 268 161 Core Hits 1726 | 6 25 15 99 . 113 338 6 38 . 14 12 . 41 61 8 2 39 47 18 20 2 62 99 5 134 25 239 258 Critical Kills 49 | . . . . . . 1 . 1 . . . . 2 5 . . . . . . . 6 3 1 3 1 21 5 Critical Parts Destroyed 41 | . . . . . 1 . . . . . . . . 6 . . . . . . . 7 . . 8 . 19 . Critical Strikes 168 | . . . 1 . 15 1 1 5 . . . . 12 17 1 . 4 11 . . . 15 16 1 15 1 41 11 Burn 28 | . . . . . 14 . . . . . . . 10 4 . . . . . . . . . . . . . . Meltdown 25 | . . . . . . . . . . . . . 2 3 . . . . . . . 3 3 1 3 1 5 4 Destroy 56 | . . . . . 1 1 . 1 . . . . . 10 . . . . . . . 6 . . . . 35 2 Blast 45 | . . . . . . . 1 4 . . . . . . . . 4 11 . . . 2 13 . 4 . 1 5 Corrupt 2 | . . . 1 . . . . . . . . . . . 1 . . . . . . . . . . . . . Detonate 12 | . . . . . . . . . . . . . . . . . . . . . . 4 . . 8 . . . Melee Attacks 6 | . . . . . . . . 2 . 4 . . . . . . . . . . . . . . . . . . Impact 6 | . . . . . . . . 2 . 4 . . . . . . . . . . . . . . . . . . Slashing . | . . . . . . . . . . . . . . . . . . . . . . . . . . . . . Piercing . | . . . . . . . . . . . . . . . . . . . . . . . . . . . . . Sneak Attacks 5 | . . . . . . . . 2 . 3 . . . . . . . . . . . . . . . . . . Combat Hostiles . | . . . . . . . . . . . . . . . . . . . . . . . . . . . . . Follow-up Attacks . | . . . . . . . . . . . . . . . . . . . . . . . . . . . . . Damage Inflicted 120996 | 205 589 496 4567 . 5707 13466 309 3338 . 1140 242 . 2476 4074 587 134 3589 4782 1109 1303 135 5517 8764 600 11418 2171 18981 25297 Guns 19300 | 205 589 396 2957 . 5210 5510 56 484 . 47 . . 603 504 170 . 27 . . . . 931 . 82 1529 . . . Cannons 52665 | . . . 337 . 331 523 253 1142 . 45 242 . 1560 3119 417 134 3193 4377 480 749 135 3898 7369 518 6097 2171 9798 5777 Explosions 48332 | . . 100 1273 . 123 7417 . 1503 . 728 . . 313 448 . . 369 405 629 554 . 688 1343 . 3742 . 9183 19514 Melee 529 | . . . . . . . . 209 . 320 . . . . . . . . . . . . . . . . . . Ramming 170 | . . . . . 43 16 . . . . . . . 3 . . . . . . . . 52 . 50 . . 6 Kinetic 30005 | 205 589 297 2816 . 587 1030 202 1439 . 92 242 . . 410 . . 1933 4166 290 308 135 2799 4756 199 2829 953 2503 1225 Thermal 41997 | . . 99 358 . 4954 5003 107 187 . . . . 2228 3283 417 134 1656 211 190 534 . 1787 2613 401 4748 1218 7295 4574 Explosive 45590 | . . 100 1273 . 123 7417 . 1503 . 728 . . 248 378 . . . 314 629 461 . . 1343 . 2484 . 9183 19406 Electromagnetic 467 | . . . 120 . . . . . . . . . . . 170 . . 91 . . . . . . . . . 86 Impact 529 | . . . . . . . . 209 . 320 . . . . . . . . . . . . . . . . . . Slashing . | . . . . . . . . . . . . . . . . . . . . . . . . . . . . . Piercing . | . . . . . . . . . . . . . . . . . . . . . . . . . . . . . Entropic 2238 | . . . . . . . . . . . . . . . . . . . . . . 931 . . 1307 . . . Highest Corruption 21 | . 1 1 9 9 . 8 8 21 21 21 . . 3 3 3 3 14 15 17 17 18 . 7 . 18 1 14 14 Average Corruption 6 | . 1 1 2 9 . 2 8 16 21 21 . . 1 3 3 3 3 7 15 17 17 . 3 . 10 1 4 6 Corruption Purged . | . . . . . . . . . . . . . . . . . . . . . . . . . . . . . Corruption Blocked 60 | . . . . . . . . . . . . . . . . . . . . . . . . . . 40 20 . Effects 604 | . 6 8 58 7 . 56 27 64 7 43 . . 13 27 3 4 13 25 37 33 3 . 37 . 72 2 42 17 Message Errors 146 | . 1 3 11 . . 13 7 15 3 9 . . 4 5 . 1 2 8 10 11 . . 9 . 17 . 11 6 Matter Fused 147 | . 1 2 19 . . 11 9 15 1 9 . . 3 8 1 2 2 5 10 10 1 . 7 . 15 . 11 5 Heat Flow Errors 70 | . 1 . 4 2 . 7 5 10 2 4 . . 1 2 . . 3 2 4 3 . . 5 . 9 . 5 1 Energy Discharges 63 | . 1 1 3 2 . 9 3 8 . 4 . . 2 5 1 . 1 4 4 1 1 . 2 . 5 . 5 1 Parts Rejected 8 | . . . . 1 . . . . . 1 . . . . . . 1 2 1 1 . . . . 1 . . . Data Loss (minor) 82 | . . 1 14 1 . 8 2 12 . 8 . . 2 3 . 1 3 2 1 4 . . 4 . 10 1 5 . Data Loss (major) 30 | . 1 1 4 . . 2 . 1 1 5 . . 1 2 1 . . . 3 . 1 . 2 . 4 . . 1 Misfires 24 | . 1 . 2 1 . 3 1 2 . 2 . . . . . . . . 2 2 . . 2 . 2 1 3 . Alerts 12 | . . . . . . 1 . . . 1 . . . 2 . . . . 2 1 . . 3 . 1 . . 1 Weapon Failures 22 | . . . 1 . . 2 . 1 . . . . . . . . 1 2 . . . . 3 . 8 . 2 2 Overload Shots 14 | . . . . . . . . . . . . . 2 1 2 . . . . . . . 2 . . . . 7 Effects 1 | . . . . . . . . . . . . . . . . . . . . . . . . . . . . 1 Short Circuit 1 | . . . . . . . . . . . . . . . . . . . . . . . . . . . . 1 Overflow Damage 3665 | . . . 51 . . 250 22 222 . 343 . . 54 195 . . 43 266 35 115 . 43 310 . 417 93 323 883 Projectiles 1470 | . . . . . . 40 22 4 . . . . 38 138 . . 26 201 . . . 43 297 . 303 93 118 147 Explosions 1712 | . . . 51 . . 210 . 31 . 47 . . 16 57 . . 17 65 35 115 . . 13 . 114 . 205 736 Melee 483 | . . . . . . . . 187 . 296 . . . . . . . . . . . . . . . . . . Knockbacks 191 | . . . . . . 4 2 10 . . 6 . . 4 . . 12 35 4 1 2 6 43 . 21 5 23 13 Impact 1 | . . . . . . 1 . . . . . . . . . . . . . . . . . . . . . . Kinetic 167 | . . . . . . 2 2 9 . . 6 . . 4 . . 12 30 4 1 2 6 34 . 17 5 21 12 Secondary 23 | . . . . . . 1 . 1 . . . . . . . . . 5 . . . . 9 . 4 . 2 1 Self-Inflicted Damage 1418 | . . . 65 . 11 39 . 196 . 124 . . . . . . . 20 59 . . . . . 338 . 87 479 Shots 33 | . . . 2 . 1 2 . 6 . 3 . . . . . . . 1 1 . . . . . 8 . 1 8 Rammed 17 | . . . . . 7 3 . . . . . . . 1 . . . . . . . . 4 . 1 . . 1 Targets Rammed 19 | . . . . . 9 3 . . . . . . . 1 . . . . . . . . 4 . 1 . . 1 Kicked . | . . . . . . . . . . . . . . . . . . . . . . . . . . . . . Crushed 2 | . . . . . 2 . . . . . . . . . . . . . . . . . . . . . . . Highest Temperature 555 | . 278 30 253 273 48 349 325 360 261 239 . . 246 244 115 39 273 148 175 214 . . 237 274 555 442 533 412 Average Temperature 83 | . 106 11 67 103 8 63 120 132 150 114 . . 85 67 43 24 33 25 68 36 . . 47 86 82 137 123 129 Received Heat Transfer 7324 | . 60 78 519 . 1287 987 27 492 . 45 . . 63 170 . . 255 197 45 9 . 54 1015 20 628 33 403 937 Effects 12 | . . . 2 . . 1 1 . 1 . . . . . . . . . . . . . . . . 3 . 4 Shutdowns 4 | . . . . . . 1 . . . . . . . . . . . . . . . . . . . . . 3 Energy Bleed 4 | . . . . . . . 1 . 1 . . . . . . . . . . . . . . . . 2 . . Interference 2 | . . . 2 . . . . . . . . . . . . . . . . . . . . . . . . . Short Circuit 1 | . . . . . . . . . . . . . . . . . . . . . . . . . . 1 . . Damage (minor) 1 | . . . . . . . . . . . . . . . . . . . . . . . . . . . . 1 Siege Activations 21 | . . . . . . . . . . . . . . . . . . . . 3 . 3 1 1 6 2 3 2 Total Turns 371 | . . . . . . . . . . . . . . . . . . . . 25 . 25 19 13 206 13 50 20 Longest Duration 115 | . . . . . . . . . . . . . . . . . . . . 11 . 12 19 13 115 10 21 10 Robots Corrupted . | . . . . . . . . . . . . . . . . . . . . . . . . . . . . . Combat Hostiles . | . . . . . . . . . . . . . . . . . . . . . . . . . . . . . Parts Fried 2 | . . . . . 1 . . . . 1 . . . . . . . . . . . . . . . . . . Impact Corruptions 16 | . . . . . 1 . . 7 . 5 . . . . . . . . . . . . 1 . 2 . . . Robots Melted 35 | . . . . . 2 1 . . . . . . 5 5 . . 1 . . . . 4 3 1 3 1 5 4 Combat Hostiles 26 | . . . . . 2 1 . . . . . . 3 4 . . . . . . . . 2 1 3 1 5 4 Parts Melted 141 | . . . . . 30 21 . . . . . . 24 17 . . . . . . . 6 6 2 7 3 22 3 Heat Transferred 56432 | . . 225 717 . 10170 10825 225 350 . . . . 4835 5680 650 74 461 . . 100 . 2051 3060 411 4864 1112 6425 4197 Parts Sabotaged 5 | . . . . . . . . . . . . . . . . . . . . . . . . . . . . 5 Parts Stolen . | . . . . . . . . . . . . . . . . . . . . . . . . . . . . . Parts Stripped . | . . . . . . . . . . . . . . . . . . . . . . . . . . . . . Power Chain Reactions 7 | . . . . . . . . . . . . . . 1 . . 3 . . 2 . . . . . . . 1 Missiles Intercepted 3 | . . . . . . . . . . . . . . . . . . . . . . 3 . . . . . . Alert | -11 -10 -10 -9 -9 -8 -7 -7 -7 -7 -6 -6 -6 -6 -6 -6 -6 -6 -5 -5 -5 -5 -4 -4 -3 -3 -2 -2 -1 ------- Run | Scr Mat Min Mat Min Mat Fac Low Low Dat Pro Fac Was Fac Ext Cet Arc Hub Fac Upp Upp War Pro Fac Res Qua Res Tes Acc Peak Influence 4758 | 15 169 97 1548 595 1132 2699 . . . . 31 25 295 624 935 545 981 589 . . . . 1963 1161 1989 1191 3165 4758 Initial 1898 | . 9 27 13 595 232 506 . . . . . 10 17 142 302 374 190 480 . . . . 25 1100 470 1113 633 1898 Average 803 | 8 68 13 735 595 585 1208 . . . . 12 17 143 387 629 522 747 380 . . . . 723 1043 922 1040 1419 3271 Maximum Alert Level 5 | . . . 4 2 4 5 . . . . . . 1 2 3 2 3 2 . . . . 5 4 5 4 5 5 Low Security (%) 20 | 100 100 100 28 . 4 . . . . . 100 100 73 9 . . 2 7 . . . . 14 . . . . . Level 1 14 | . . . 5 . 35 . . . . . . . 26 43 10 4 3 42 . . . . 32 . 26 . . . Level 2 16 | . . . 17 100 18 17 . . . . . . . 47 46 95 23 49 . . . . 8 . 29 . 4 . Level 3 20 | . . . 16 . 32 33 . . . . . . . . 43 . 69 . . . . . 19 52 4 48 31 . Level 4 16 | . . . 32 . 9 25 . . . . . . . . . . . . . . . . 10 47 22 51 33 . Level 5 5 | . . . . . . 15 . . . . . . . . . . . . . . . . 11 . 16 . 16 6 High Security 5 | . . . . . . 7 . . . . . . . . . . . . . . . . 3 . . . 14 93 Max Security . | . . . . . . . . . . . . . . . . . . . . . . . . . . . . . Sterilizations 2 | . . . 1 . 1 . . . . . . . . . . . . . . . . . . . . . . . Squads Dispatched 173 | . 1 . 9 . 10 29 . 1 . . . . 6 1 . . 11 9 . . . . 15 4 18 1 22 36 Investigation 19 | . . . 4 . 5 . . . . . . . 1 . . . 3 1 . . . . 4 1 . . . . Extermination 28 | . . . . . . 8 . . . . . . 3 . . . 1 3 . . . . 4 . 6 . 3 . Reinforcement 40 | . 1 . 3 . 3 6 . . . . . . 2 1 . . 3 3 . . . . 3 3 6 1 4 1 Assault 77 | . . . 2 . 2 12 . 1 . . . . . . . . 1 2 . . . . 4 . 6 . 15 32 Garrison 9 | . . . . . . 3 . . . . . . . . . . 3 . . . . . . . . . . 3 Intercept . | . . . . . . . . . . . . . . . . . . . . . . . . . . . . . Searches Triggered . | . . . . . . . . . . . . . . . . . . . . . . . . . . . . . Data Miner Redirects 13 | . . . . . . . . . . . . . 1 . . . . 2 . . . . 3 . 3 . 4 . Construction Impeded 12 | . . . 1 . . 4 . . . . . . 1 . . . . 1 . . . . 1 . 2 . 1 1 Haulers Reinforced 4 | . . . . . . . . . . . . . 1 . . . 1 1 . . . . 1 . . . . . Active Scanning Responses . | . . . . . . . . . . . . . . . . . . . . . . . . . . . . . Cargo Convoy Interrupts . | . . . . . . . . . . . . . . . . . . . . . . . . . . . . . Stealth | -11 -10 -10 -9 -9 -8 -7 -7 -7 -7 -6 -6 -6 -6 -6 -6 -6 -6 -5 -5 -5 -5 -4 -4 -3 -3 -2 -2 -1 --------- Run | Scr Mat Min Mat Min Mat Fac Low Low Dat Pro Fac Was Fac Ext Cet Arc Hub Fac Upp Upp War Pro Fac Res Qua Res Tes Acc Distress Signals 48 | . 2 1 5 . 3 3 . . . . . . 1 2 2 . 2 . . . . 4 3 4 3 8 3 2 Communications Jammed 8 | . . . . . . . . . . . . . . . . . . . . . . . . . . . 8 . Distress Signals 8 | . . . . . . . . . . . . . . . . . . . . . . . . . . . 8 . Times Spotted 997 | . 23 7 67 7 82 106 2 22 . 9 1 3 20 35 12 4 28 25 13 12 4 22 83 2 86 24 132 166 Peak Tracking Total 21 | . 5 3 5 7 5 17 2 8 . 3 1 3 4 6 5 1 7 6 5 5 3 6 11 1 15 8 21 19 Tactical Retreats 44 | . 1 . 4 . 4 5 . . . . . . 1 3 . . 2 . . 3 . 1 7 . 3 1 7 2 Traps | -11 -10 -10 -9 -9 -8 -7 -7 -7 -7 -6 -6 -6 -6 -6 -6 -6 -6 -5 -5 -5 -5 -4 -4 -3 -3 -2 -2 -1 ------- Run | Scr Mat Min Mat Min Mat Fac Low Low Dat Pro Fac Was Fac Ext Cet Arc Hub Fac Upp Upp War Pro Fac Res Qua Res Tes Acc Traps Triggered 15 | . 1 . 2 . 2 3 1 . . . 1 . 2 2 . . . . . . 1 . . . . . . . Indirectly . | . . . . . . . . . . . . . . . . . . . . . . . . . . . . . Trap Hack Attempts . | . . . . . . . . . . . . . . . . . . . . . . . . . . . . . Triggered . | . . . . . . . . . . . . . . . . . . . . . . . . . . . . . Disarmed . | . . . . . . . . . . . . . . . . . . . . . . . . . . . . . Reprogrammed . | . . . . . . . . . . . . . . . . . . . . . . . . . . . . . Reused . | . . . . . . . . . . . . . . . . . . . . . . . . . . . . . Traps Extracted . | . . . . . . . . . . . . . . . . . . . . . . . . . . . . . Installed . | . . . . . . . . . . . . . . . . . . . . . . . . . . . . . Triggered 8 | . . . . . . . . . . . . . . . . . . . . 1 7 . . . . . . . Machines | -11 -10 -10 -9 -9 -8 -7 -7 -7 -7 -6 -6 -6 -6 -6 -6 -6 -6 -5 -5 -5 -5 -4 -4 -3 -3 -2 -2 -1 ---------- Run | Scr Mat Min Mat Min Mat Fac Low Low Dat Pro Fac Was Fac Ext Cet Arc Hub Fac Upp Upp War Pro Fac Res Qua Res Tes Acc Machines Disabled 110 | . . . 4 . 2 17 . . . . . . 8 4 2 2 3 5 . . . 7 9 2 27 . 16 2 Max in Single Turn 5 | . . . 1 . 1 5 . . . . . . 4 2 1 . 1 2 . . . 2 1 1 2 . 2 1 Garrison Access 1 | . . . . . . . . . . . 1 . . . . . . . . . . . . . . . . . Network Hub 2 | . . . . . . . . . . . . . . . . . 2 . . . . . . . . . . . Machines Sabotaged 1 | . . . . . . . . . . . . . . . . . 1 . . . . . . . . . . . Garrisons Compromised . | . . . . . . . . . . . . . . . . . . . . . . . . . . . . . Overloaded Fab Kills . | . . . . . . . . . . . . . . . . . . . . . . . . . . . . . Hacking | -11 -10 -10 -9 -9 -8 -7 -7 -7 -7 -6 -6 -6 -6 -6 -6 -6 -6 -5 -5 -5 -5 -4 -4 -3 -3 -2 -2 -1 --------- Run | Scr Mat Min Mat Min Mat Fac Low Low Dat Pro Fac Was Fac Ext Cet Arc Hub Fac Upp Upp War Pro Fac Res Qua Res Tes Acc Machines Accessed 110 | . 8 1 11 . 12 7 1 1 4 . 4 . 4 4 1 . 3 7 . 1 5 . 16 . 11 1 8 . Terminals 64 | . 7 1 8 . 7 2 . . . . 1 . 3 3 1 . 3 5 . . . . 9 . 9 . 5 . Fabricators 7 | . . . . . . 2 . . . . . . . . . . . . . . . . 3 . . . 2 . Repair Stations 10 | . . . 1 . 2 1 . . . . 1 . . 1 . . . 2 . . . . 1 . 1 . . . Recycling Units 12 | . 1 . 2 . 2 2 . . . . 1 . 1 . . . . . . . . . 2 . . 1 . . Scanalyzers 3 | . . . . . . . . . . . . . . . . . . . . . . . 1 . 1 . 1 . Garrison Access 2 | . . . . . 1 . . . . . 1 . . . . . . . . . . . . . . . . . Total Hacks 377 | . 25 2 34 . 30 18 1 1 30 . 6 . 12 9 2 . 5 39 . 1 9 . 106 . 27 1 19 . Successful 189 | . 9 . 20 . 14 7 1 1 30 . 3 . 4 3 . . 3 14 . 1 9 . 52 . 9 1 8 . Failed 187 | . 16 2 13 . 16 11 . . . . 3 . 8 6 2 . 2 25 . . . . 54 . 18 . 11 . Catastrophic 39 | . 2 . 2 . 3 1 . . . . 1 . 1 4 . . . 7 . . . . 8 . 7 . 3 . Database Lockouts 1 | . . . 1 . . . . . . . . . . . . . . . . . . . . . . . . . Manual 142 | . 18 2 15 . 9 10 . . . . 2 . 5 1 1 . 5 9 . . 1 . 47 . 12 . 5 . Terminals 224 | . 19 2 22 . 16 4 . . . . 2 . 9 6 2 . 5 30 . . . . 68 . 25 . 14 . Fabricators 18 | . . . . . . 4 . . . . . . . . . . . . . . . . 12 . . . 2 . Repair Stations 41 | . . . 7 . 7 3 . . . . 2 . . 3 . . . 9 . . . . 9 . 1 . . . Recycling Units 43 | . 6 . 5 . 5 7 . . . . 1 . 3 . . . . . . . . . 15 . . 1 . . Scanalyzers 6 | . . . . . . . . . . . . . . . . . . . . . . . 2 . 1 . 3 . Garrison Access 3 | . . . . . 2 . . . . . 1 . . . . . . . . . . . . . . . . . Terminal Hacks 118 | . 7 . 11 . 6 . 1 1 30 . . . 2 1 . . . 10 . 1 9 . 25 . 9 . 5 . Record 20 | . 1 . . . . . . . 11 . . . . . . . . . . . 7 . . . 1 . . . Part Schematic 14 | . . . . . . . . . 11 . . . . . . . . 1 . . . . 2 . . . . . Robot Schematic 5 | . . . . . . . . . 5 . . . . . . . . . . . . . . . . . . . Robot Analysis 9 | . 2 . 2 . 4 . . . . . . . . 1 . . . . . . . . . . . . . . Prototype ID Bank 20 | . 3 . 2 . 1 . . . 3 . . . . . . . . 2 . . . . 6 . 1 . 2 . Open Door 6 | . . . . . . . 1 1 . . . . . . . . . . . 1 2 . . . 1 . . . Level Access Points 1 | . . . . . . . . . . . . . 1 . . . . . . . . . . . . . . . Branch Access Points 6 | . 1 . 1 . . . . . . . . . 1 . . . . 1 . . . . 1 . 1 . . . Emergency Access Points 3 | . . . . . . . . . . . . . . . . . . 1 . . . . 1 . 1 . . . Terminal Index 2 | . . . . . . . . . . . . . . . . . . 1 . . . . 1 . . . . . Fabricator Index 1 | . . . . . . . . . . . . . . . . . . . . . . . 1 . . . . . Repair Station Index 1 | . . . . . . . . . . . . . . . . . . . . . . . 1 . . . . . Scanalyzer Index 1 | . . . . . . . . . . . . . . . . . . . . . . . 1 . . . . . Alert Level 2 | . . . 1 . . . . . . . . . . . . . . . . . . . 1 . . . . . Unreport Threat 4 | . . . . . 1 . . . . . . . . . . . . 2 . . . . . . 1 . . . Locate Traps 8 | . . . 3 . . . . . . . . . . . . . . 1 . . . . 3 . 1 . . . Maintenance Status 1 | . . . . . . . . . . . . . . . . . . . . . . . 1 . . . . . Security Status 1 | . . . . . . . . . . . . . . . . . . . . . . . 1 . . . . . Surveillance Status 1 | . . . . . . . . . . . . . . . . . . . . . . . 1 . . . . . Transport Status 1 | . . . . . . . . . . . . . . . . . . . . . . . 1 . . . . . Recall Investigation 1 | . . . . . . . . . . . . . . . . . . 1 . . . . . . . . . . Hauler Manifests 3 | . . . 1 . . . . . . . . . . . . . . . . . . . . . 1 . 1 . Registered Components 2 | . . . 1 . . . . . . . . . . . . . . . . . . . 1 . . . . . Zone Layout 4 | . . . . . . . . . . . . . . . . . . . . . . . 2 . 1 . 1 . Protovariant Controls 1 | . . . . . . . . . . . . . . . . . . . . . . . . . . . 1 . Fabricator Hacks 6 | . . . . . . 1 . . . . . . . . . . . . . . . . 5 . . . . . Load Schematic 3 | . . . . . . . . . . . . . . . . . . . . . . . 3 . . . . . Build 3 | . . . . . . 1 . . . . . . . . . . . . . . . . 2 . . . . . Repair Station Hacks 24 | . . . 5 . 5 1 . . . . 2 . . 2 . . . 4 . . . . 5 . . . . . Scan Component 15 | . . . 3 . 3 1 . . . . 1 . . 1 . . . 3 . . . . 3 . . . . . Repair 8 | . . . 2 . 2 . . . . . . . . 1 . . . 1 . . . . 2 . . . . . Refit 1 | . . . . . . . . . . . 1 . . . . . . . . . . . . . . . . . Recycling Unit Hacks 9 | . . . 2 . 2 1 . . . . . . 1 . . . . . . . . . 2 . . 1 . . Retrieve Components 9 | . . . 2 . 2 1 . . . . . . 1 . . . . . . . . . 2 . . 1 . . Scanalyzer 3 | . . . . . . . . . . . . . . . . . . . . . . . 2 . . . 1 . Insert Component 3 | . . . . . . . . . . . . . . . . . . . . . . . 2 . . . 1 . Garrison Access Hacks 1 | . . . . . . . . . . . 1 . . . . . . . . . . . . . . . . . Seal Access 1 | . . . . . . . . . . . 1 . . . . . . . . . . . . . . . . . Unauthorized Hacks 28 | . 2 . 2 . 1 4 . . . . . . 1 . . . 3 . . . . . 13 . . . 2 . Terminals 13 | . . . . . . . . . . . . . . . . . 3 . . . . . 9 . . . 1 . Track 3 | . . . . . . . . . . . . . . . . . . . . . . . 2 . . . 1 . Botnet 6 | . . . . . . . . . . . . . . . . . . . . . . . 6 . . . . . Operators 1 | . . . . . . . . . . . . . . . . . . . . . . . 1 . . . . . Sabotage 3 | . . . . . . . . . . . . . . . . . 3 . . . . . . . . . . . Fabricators 2 | . . . . . . 1 . . . . . . . . . . . . . . . . 1 . . . . . Fabnet 2 | . . . . . . 1 . . . . . . . . . . . . . . . . 1 . . . . . Repair Stations . | . . . . . . . . . . . . . . . . . . . . . . . . . . . . . Recycling Units 12 | . 2 . 2 . 1 3 . . . . . . 1 . . . . . . . . . 3 . . . . . Reject 3 | . 1 . . . . 1 . . . . . . . . . . . . . . . . 1 . . . . . Recyclers 3 | . . . . . . 1 . . . . . . 1 . . . . . . . . . 1 . . . . . Mask 4 | . 1 . . . 1 1 . . . . . . . . . . . . . . . . 1 . . . . . Tunnel 2 | . . . 2 . . . . . . . . . . . . . . . . . . . . . . . . . Scanalyzers 1 | . . . . . . . . . . . . . . . . . . . . . . . . . . . 1 . Researchers 1 | . . . . . . . . . . . . . . . . . . . . . . . . . . . 1 . Garrison Access . | . . . . . . . . . . . . . . . . . . . . . . . . . . . . . Data Cores Recovered 4 | . . . . . 1 . . . . . . . 1 . . . . . . . . . 1 1 . . . . Used 2 | . . . . . . . . . . . . . 1 . . . . . . . . . 1 . . . . . Hacking Detections 87 | . 8 1 9 . 12 7 . . . . 3 . 4 4 1 . 1 7 . . . . 15 . 9 1 5 . Full Trace Events 11 | . 2 . 1 . 3 . . . . . . . . . . . . 1 . . . . 4 . . . . . Feedback Events 2 | . 1 . . . . . . . . . . . . . . . . . . . . . 1 . . . . . Corruption 2 | . 1 . . . . . . . . . . . . . . . . . . . . . 1 . . . . . Feedback Blocked . | . . . . . . . . . . . . . . . . . . . . . . . . . . . . . Robot Schematics Acquired 10 | . . . . . . . . . 5 . . . . . . . . . . . . . . . 3 . 2 . Robots Built 2 | . . . . . . . . . . . . . . . . . . . . . . . 2 . . . . . Authchips . | . . . . . . . . . . . . . . . . . . . . . . . . . . . . . Time 152 | . . . . . . . . . . . . . . . . . . . . . . . 152 . . . . . Total Robot Build Rating 10 | . . . . . . . . . . . . . . . . . . . . . . . 10 . . . . . Part Schematics Acquired 23 | . . . . . . . . . 11 . . . . . . . . 1 . . . . 1 . 4 . 6 . Parts Built 3 | . . . . . . 1 . . . . . . . . . . . . . . . . 2 . . . . . Authchips . | . . . . . . . . . . . . . . . . . . . . . . . . . . . . . Time 153 | . . . . . . 117 . . . . . . . . . . . . . . . . 36 . . . . . Total Part Build Rating 13 | . . . . . . 7 . . . . . . . . . . . . . . . . 6 . . . . . Parts Repaired 8 | . . . 2 . 2 . . . . . . . . 1 . . . 1 . . . . 2 . . . . . Time 467 | . . . 68 . 58 . . . . . . . . 43 . . . 54 . . . . 244 . . . . . Parts Recycled . | . . . . . . . . . . . . . . . . . . . . . . . . . . . . . Recycled Matter . | . . . . . . . . . . . . . . . . . . . . . . . . . . . . . Retrieved Matter . | . . . . . . . . . . . . . . . . . . . . . . . . . . . . . Retrieved Components 44 | . . . 19 . 9 . . . . . . . 3 . . . . . . . . . 11 . . 2 . . Parts Scanalyzed . | . . . . . . . . . . . . . . . . . . . . . . . . . . . . . Part Schematics Acquired . | . . . . . . . . . . . . . . . . . . . . . . . . . . . . . Parts Damaged . | . . . . . . . . . . . . . . . . . . . . . . . . . . . . . Bothacking | -11 -10 -10 -9 -9 -8 -7 -7 -7 -7 -6 -6 -6 -6 -6 -6 -6 -6 -5 -5 -5 -5 -4 -4 -3 -3 -2 -2 -1 ------------ Run | Scr Mat Min Mat Min Mat Fac Low Low Dat Pro Fac Was Fac Ext Cet Arc Hub Fac Upp Upp War Pro Fac Res Qua Res Tes Acc Used RIF Installer . | . . . . . . . . . . . . . . . . . . . . . . . . . . . . . Robots Hacked . | . . . . . . . . . . . . . . . . . . . . . . . . . . . . . Non-combat . | . . . . . . . . . . . . . . . . . . . . . . . . . . . . . Combat . | . . . . . . . . . . . . . . . . . . . . . . . . . . . . . Robot Hacks Applied . | . . . . . . . . . . . . . . . . . . . . . . . . . . . . . Relay Couplers Released 3 | . . . . . . . . . . . . . 3 . . . . . . . . . . . . . . . Programmers 3 | . . . . . . . . . . . . . 3 . . . . . . . . . . . . . . . Fabnet Peak Effective % . | . . . . . . . . . . . . . . . . . . . . . . . . . . . . . Robots Rewired 19 | . . . . . . . . 1 . . . . . 12 . . . . . . 4 2 . . . . . . Allies Hacked 3 | . . . . . . . . . . . . . . . . . . . . . . . 3 . . . . . Hacks Repelled . | . . . . . . . . . . . . . . . . . . . . . . . . . . . . . Allies | -11 -10 -10 -9 -9 -8 -7 -7 -7 -7 -6 -6 -6 -6 -6 -6 -6 -6 -5 -5 -5 -5 -4 -4 -3 -3 -2 -2 -1 -------- Run | Scr Mat Min Mat Min Mat Fac Low Low Dat Pro Fac Was Fac Ext Cet Arc Hub Fac Upp Upp War Pro Fac Res Qua Res Tes Acc Total Allies 37 | . . . . . . . . 1 . 1 . . . 22 5 . . . . . 4 2 2 . . . . . Largest Group 16 | . . . . . . . . 1 . 1 . . . 15 16 15 12 . . . 4 4 3 . . . . . Highest-Rated Group 798 | . . . . . . . . 30 . 96 . . . 574 798 754 542 . . . 220 220 163 . . . . . Highest-Rated Ally 159 | . . . . . . . . 30 . 96 . . . 159 159 159 96 . . . 65 65 65 . . . . . Total Orders 7 | . . . . . . . . . . . . . . . . . . . . 3 . 3 1 . . . . . EXPLORE 6 | . . . . . . . . . . . . . . . . . . . . 2 . 3 1 . . . . . RETURN 1 | . . . . . . . . . . . . . . . . . . . . 1 . . . . . . . . Ally Attacks 302 | . . . . . . . . 5 . 16 . . . 38 97 35 70 . . . 9 5 27 . . . . . Total Damage 9575 | . . . . . . . . 96 . 573 . . . 985 2616 826 1796 . . . 317 159 2207 . . . . . Kills 61 | . . . . . . . . . . 4 . . . 8 16 5 11 . . . 2 2 13 . . . . . Allies Corrupted 2 | . . . . . . . . . . . . . . . . . 1 . . . . . 1 . . . . . Allies Melted 5 | . . . . . . . . . . . . . . . 1 . 1 . . . 1 . . . . 2 . . Intel | -11 -10 -10 -9 -9 -8 -7 -7 -7 -7 -6 -6 -6 -6 -6 -6 -6 -6 -5 -5 -5 -5 -4 -4 -3 -3 -2 -2 -1 ------- Run | Scr Mat Min Mat Min Mat Fac Low Low Dat Pro Fac Was Fac Ext Cet Arc Hub Fac Upp Upp War Pro Fac Res Qua Res Tes Acc Robot Analysis Total 9 | . 2 . 2 . 4 . . . . . . . . 1 . . . . . . . . . . . . . . Derelict Logs Recovered 11 | . . 1 . 1 . . 2 2 . . . . . . . . . . 2 1 . 2 . . . . . . Drone Launches 11 | . . . . . . . . . . . . . . . . . . . . 5 . 3 3 . . . . . Drone Recoveries 5 | . . . . . . . . . . . . . . . . . . . . 4 . 1 . . . . . . Exploration | -11 -10 -10 -9 -9 -8 -7 -7 -7 -7 -6 -6 -6 -6 -6 -6 -6 -6 -5 -5 -5 -5 -4 -4 -3 -3 -2 -2 -1 ------------- Run | Scr Mat Min Mat Min Mat Fac Low Low Dat Pro Fac Was Fac Ext Cet Arc Hub Fac Upp Upp War Pro Fac Res Qua Res Tes Acc Turns Passed 39047 | 119 1481 1451 3621 238 3822 4376 898 1643 131 903 311 107 1348 1657 394 143 769 1119 953 816 1428 1938 2257 843 1825 1490 1995 971 Spaces Moved 17245 | 39 722 641 1479 144 1567 1000 712 828 78 489 205 76 863 803 196 74 313 461 548 424 836 778 922 466 677 671 892 341 Core 62 | . . . . . . . . . . . . . . . . . . . . . . . . . . . . 62 Treads 11040 | . 326 641 825 144 1567 548 . 22 . . . . . . . . 42 434 548 424 836 776 922 466 677 671 892 279 Legs 435 | 39 396 . . . . . . . . . . . . . . . . . . . . . . . . . . . Wheels 5708 | . . . 654 . . 452 712 806 78 489 205 76 863 803 196 74 271 27 . . . 2 . . . . . . Hover . | . . . . . . . . . . . . . . . . . . . . . . . . . . . . . Flight . | . . . . . . . . . . . . . . . . . . . . . . . . . . . . . Fastest Speed 50 | 120 120 160 110 160 150 100 100 105 165 165 125 111 111 140 155 155 155 160 160 160 160 160 160 160 160 153 145 50 Average Speed 160 | 120 174 160 150 160 187 151 116 169 165 173 131 111 127 147 157 163 195 161 160 160 160 167 161 160 175 190 147 156 Slowest Speed 305 | 120 190 160 240 160 240 305 162 240 165 180 180 111 140 170 170 170 270 220 160 160 160 270 240 160 256 241 230 238 Overloaded Moves . | . . . . . . . . . . . . . . . . . . . . . . . . . . . . . Propulsion Burnouts . | . . . . . . . . . . . . . . . . . . . . . . . . . . . . . Robots Hopped . | . . . . . . . . . . . . . . . . . . . . . . . . . . . . . Cave-ins Triggered 3 | . . . 1 . . . . 1 . . . . . . . . . . . . . . . . . . 1 . Exploration Rate (%) 59 | 4 98 94 97 40 91 17 86 91 69 66 8 66 25 88 90 79 37 12 65 74 93 88 36 13 74 26 87 13 Regions Visited 28 Branch Regions 16 Pre-discovered Areas 4 | . . 1 2 . . . . . 1 . . . . . . . . . . . . . . . . . . . Known Exits Taken 14 | . 1 . 1 . 1 1 1 . . 1 . . 1 . . . 1 1 . . . 1 . 1 1 1 1 . Unknown Exits Taken 12 | 1 . 1 . 1 . . . 1 1 . . . . 1 1 1 . . 1 1 1 . 1 . . . . . Scrap Searched 16 | . . 1 . 1 . . 3 2 . 2 . . . . . . . . 3 3 . 1 . . . . . . Spaces Dug 231 | . . . 18 . 14 35 . 6 . 10 . . 9 3 1 . . 9 46 3 6 3 15 13 10 11 12 7 Terrain Destroyed 2086 | . . 3 126 . 34 472 2 148 . 44 . . 27 101 1 . 23 56 86 54 8 48 140 14 219 48 230 202 Melee . | . . . . . . . . . . . . . . . . . . . . . . . . . . . . . Projectile 485 | . . . 1 . . 7 2 14 . . . . 14 18 1 . 14 43 19 22 8 21 66 14 76 48 66 31 AOE 1601 | . . 3 125 . 34 465 . 134 . 44 . . 13 83 . . 9 13 67 32 . 27 74 . 143 . 164 171 Terrain Rammed . | . . . . . . . . . . . . . . . . . . . . . . . . . . . . . Walls Destroyed . | . . . . . . . . . . . . . . . . . . . . . . . . . . . . . Machines Disabled . | . . . . . . . . . . . . . . . . . . . . . . . . . . . . . Actions | -11 -10 -10 -9 -9 -8 -7 -7 -7 -7 -6 -6 -6 -6 -6 -6 -6 -6 -5 -5 -5 -5 -4 -4 -3 -3 -2 -2 -1 --------- Run | Scr Mat Min Mat Min Mat Fac Low Low Dat Pro Fac Was Fac Ext Cet Arc Hub Fac Upp Upp War Pro Fac Res Qua Res Tes Acc Total 25385 | 78 848 1012 2678 148 2077 3314 766 964 80 522 242 98 1037 1124 265 93 385 691 584 514 908 1255 1446 530 1078 809 1274 565 Wait 4827 | 19 36 330 907 . 193 1896 12 35 . 3 1 20 46 95 33 9 6 123 2 49 9 330 303 11 183 19 137 20 Move 17219 | 38 721 640 1478 143 1566 999 711 827 77 488 205 75 862 802 195 73 312 460 547 423 835 777 921 465 677 670 891 341 Hop . | . . . . . . . . . . . . . . . . . . . . . . . . . . . . . Pick Up 262 | . 14 3 32 . 33 12 19 21 . 7 7 1 15 9 8 . 10 3 . 1 4 7 9 3 10 10 14 10 Fast Attach 218 | 1 2 . 15 1 11 24 3 2 1 1 5 . 18 6 3 3 3 11 1 6 5 11 25 3 16 16 17 8 Attach 116 | . 3 1 7 . 4 13 3 11 . 3 1 . 2 1 2 1 4 3 1 . 3 2 6 2 4 6 7 26 Detach 29 | . . . 1 . 2 . . . . . . . 2 2 . 2 . 1 . . 1 1 . 1 3 3 3 7 Swap 368 | . 3 1 36 2 24 71 5 12 1 5 3 1 9 14 2 . 3 14 8 8 7 6 31 14 39 16 31 2 Drop 362 | . 7 2 49 . 32 24 6 1 1 . 11 1 37 9 12 3 10 8 . 4 10 16 31 9 25 24 26 4 Fire 1770 | 20 62 35 153 2 203 272 7 51 . 12 9 . 46 73 10 2 37 68 24 23 13 95 116 22 121 45 142 107 Melee 5 | . . . . . . . . 2 . 3 . . . . . . . . . . . . . . . . . . Ram 2 | . . . . . . 2 . . . . . . . . . . . . . . . . . . . . . . Kick . | . . . . . . . . . . . . . . . . . . . . . . . . . . . . . Crush 16 | . . . . . 9 1 . . . . . . . 1 . . . . . . . . 4 . . . . 1 Escape Stasis 61 | . . . . . . . . . . . . . . 16 . . . . . . . . . . . . 6 39 Rewire 130 | . . . . . . . . 2 . . . . . 96 . . . . 1 . 21 10 . . . . . . Trap . | . . . . . . . . . . . . . . . . . . . . . . . . . . . . . Miscellaneous . | . . . . . . . . . . . . . . . . . . . . . . . . . . . . . Route ------- -11/Scrapyard -10/Materials (discovered 4 exits: *Mat x3 / *Min) -10/Mines -9/Materials (discovered 4 exits: *Mat x3 / *Min) -9/Mines (discovered 2 exits: *Mat x2) -8/Materials (discovered 2 exits: *Fac x2) -7/Factory (discovered 2 exits: *Fac / *Low) -7/Lower Caves -7/Lower Caves (discovered 2 exits: *Fac / *Dat) -7/Data Miner -6/Proximity Caves -6/Factory -6/Waste -6/Factory (discovered 8 exits: *Fac x4 / Low x2 / *Ext x2) -6/Extension (discovered 2 exits: *Fac / *Cet) -6/Cetus (discovered 2 exits: *Fac / *Arc) -6/Archives (discovered 2 exits: *Fac / *Hub) -6/Hub_04(d) -5/Factory (discovered 2 exits: *Upp x2) -5/Upper Caves -5/Upper Caves (discovered 2 exits: *Fac / *War) -5/Warlord -4/Proximity Caves -4/Factory (discovered 4 exits: [*Res x2] / *Upp x2) -3/Research (discovered 3 exits: Res / *Arm / *Qua) -3/Quarantine -2/Research -2/Testing -1/Access History --------- Turn | Location | Event 22 | -11/Scrapyard | Discovered new exit (range 3) 120 | -11/Scrapyard | Entered Materials 304 | -10/Materials | Build established: Mutant 602 | -10/Materials | Discovered new exit (range 12) 800 | -10/Materials | Discovered new exit (range 16) 1175 | -10/Materials | Identified exit to Mines 1346 | -10/Materials | Discovered new exit (range 16) 1601 | -10/Materials | Entered Mines 1726 | -10/Mines | Discovered new exit (range 9) 2018 | -10/Mines | Core integrity fell below 50% 2071 | -10/Mines | YI-UF0 nonchalantly dropped a Grenade Launcher on the ground 2112 | -10/Mines | Destroyed YI-UF0 2449 | -10/Mines | Excavation squad dispatched 2449 | -10/Mines | A large section of the Mines collapsed 3052 | -10/Mines | Entered Materials 3052 | -9/Materials | Evolved 2 slots: Propulsion x1, Utility x1 3129 | -9/Materials | Identified exit to Mines 4034 | -9/Materials | Repaired Med. Armor Plating 4072 | -9/Materials | Repaired Broken Lgt. Treads 4098 | -9/Materials | Central database locked down 4141 | -9/Materials | Discovered new exit (range 16) 4944 | -9/Materials | Discovered new exit (range 3) 5452 | -9/Materials | First assault squad dispatched 5573 | -9/Materials | Discovered new exit (range 14) 6405 | -9/Materials | Sterilization system engaged 6405 | -9/Materials | Non-combat units ordered to evacuate 6461 | -9/Materials | Crushed by falling debris 6461 | -9/Materials | Core integrity fell below 50% 6505 | -9/Materials | Combat units ordered to evacuate 6673 | -9/Materials | Entered Mines 6748 | -9/Mines | Discovered new exit (range 9) 6803 | -9/Mines | Learned Materials terminal intel 6811 | -9/Mines | Discovered new exit (range 10) 6897 | -9/Mines | Assembled infested the area 6911 | -9/Mines | Entered Materials 6911 | -8/Materials | Evolved 2 slots: Utility x2 6912 | -8/Materials | Loaded intel: 10 terminal locations 8911 | -8/Materials | First assault squad dispatched 9399 | -8/Materials | Repaired Hcp. Storage Unit 9433 | -8/Materials | Repaired Cooling System 9644 | -8/Materials | Discovered new exit (range 9) 9902 | -8/Materials | Discovered new exit (range 15) 10375 | -8/Materials | Sterilization system engaged 10375 | -8/Materials | Non-combat units ordered to evacuate 10475 | -8/Materials | Combat units ordered to evacuate 10516 | -8/Materials | Identified exit to Factory 10675 | -8/Materials | Ambient heat levels rising (+10) 10733 | -8/Materials | Entered Factory 10733 | -7/Factory | Evolved 2 slots: Propulsion x1, Weapon x1 10898 | -7/Factory | Discovered new exit (range 12) 10914 | -7/Factory | Identified exit to Factory 11125 | -7/Factory | Discovered new exit (range 6) 11130 | -7/Factory | Identified exit to Lower Caves 11261 | -7/Factory | Build established: Tank 11419 | -7/Factory | Fabricated Imp. Phase Shifter? 11533 | -7/Factory | First assault squad dispatched 11717 | -7/Factory | Garrison activated, responded to threat 11772 | -7/Factory | Destroyed 7 combat bots 12278 | -7/Factory | Build established: Mutant 14769 | -7/Factory | High security lockdown imminent 14849 | -7/Factory | High security lockdown engaged 14944 | -7/Factory | Destroyed 12 combat bots 15076 | -7/Factory | Core integrity fell below 50% 15109 | -7/Factory | Entered Lower Caves 15112 | -7/Lower Caves | Destroyed 11 combat bots 15126 | -7/Lower Caves | Lost 10 parts (3n5u2w) 15440 | -7/Lower Caves | Learned Factory emergency access door positions 15614 | -7/Lower Caves | Identified exit to Lower Caves 15995 | -7/Lower Caves | Build established: Hauler-Mutant 16007 | -7/Lower Caves | Entered another Lower Caves area 16054 | -7/Lower Caves | Discovered exit to Factory (range 9) 16161 | -7/Lower Caves | Spotted B-75 Beast 16472 | -7/Lower Caves | Destroyed B-75 Beast 16484 | -7/Lower Caves | Lost 4 parts (1n2u1w) 16533 | -7/Lower Caves | Attracted the attention of an 0b10 outpost 16578 | -7/Lower Caves | System corruption reached 10% 16616 | -7/Lower Caves | Lost 4 parts (1n2u1w) 16627 | -7/Lower Caves | Destroyed 10 combat bots 16646 | -7/Lower Caves | Crushed by falling debris 16646 | -7/Lower Caves | Core integrity fell below 20% 16677 | -7/Lower Caves | Lost 3 parts (1p1n1w) 16719 | -7/Lower Caves | Learned Factory stockpile data 16952 | -7/Lower Caves | Build established: Mutant 17282 | -7/Lower Caves | Encountered a Warlord checkpoint 17376 | -7/Lower Caves | Build established: Derelict-Mutant 17409 | -7/Lower Caves | Discovered new exit (range 12) 17447 | -7/Lower Caves | Learned Factory non-interactive machine intel 17650 | -7/Lower Caves | Entered Data Miner 17650 | -7/Data Miner | Discovered new exit (range 6) 17682 | -7/Data Miner | Met Data Miner 17714 | -7/Data Miner | Learned location of Section 7 (-3) 17714 | -7/Data Miner | Acquired the access code to Warlord's prototype stash 17740 | -7/Data Miner | Received God Mode back door access code from Data Miner 17781 | -7/Data Miner | Entered Proximity Caves 18099 | -6/Proximity Caves | Escorted by Enhanced Grunt 18387 | -6/Proximity Caves | Build established: Mutant 18544 | -6/Proximity Caves | Discovered exit to Factory (range 10) 18684 | -6/Proximity Caves | Entered Factory 18684 | -6/Factory | Evolved 2 slots: Utility x2 18687 | -6/Factory | Loaded intel: 254 non-interactive machine locations 18995 | -6/Factory | Sucked down chute 18995 | -6/Factory | Entered Waste 19017 | -6/Waste | Spotted C-40 Crusher 19045 | -6/Waste | Spotted C-40 Crusher 19047 | -6/Waste | Spotted C-40 Crusher 19053 | -6/Waste | Spotted C-40 Crusher 19085 | -6/Waste | Discovered new exit (range 16) 19101 | -6/Waste | Identified exit to Factory 19102 | -6/Waste | Entered Factory 19218 | -6/Factory | Discovered new exit (range 3) 19220 | -6/Factory | Identified exit to Factory 19376 | -6/Factory | Identified exit to Lower Caves 19376 | -6/Factory | Identified exit to Extension 19560 | -6/Factory | Found Exp. Targeting Computer 19564 | -6/Factory | Found Exp. Targeting Computer 19568 | -6/Factory | Found Exp. Targeting Computer 19732 | -6/Factory | Build established: Skirmisher 19879 | -6/Factory | Incoming investigation squad redirected 20248 | -6/Factory | Found Prototype Launcher 20248 | -6/Factory | Identified Scatter Rocket Array 20252 | -6/Factory | Found Scatter Rocket Array 20257 | -6/Factory | Found Scatter Rocket Array 20450 | -6/Factory | Entered Extension 20806 | -6/Extension | Repaired Broken Hyp. Mass Driver 20823 | -6/Extension | Build established: Gunner 21075 | -6/Extension | Rescued a captive Derelict 21077 | -6/Extension | Rescued a captive Derelict 21200 | -6/Extension | Disrupted transfer network 21317 | -6/Extension | Spotted B-75 Beast 21332 | -6/Extension | Destroyed B-75 Beast 21337 | -6/Extension | Spotted B-75 Beast 21363 | -6/Extension | Destroyed B-75 Beast 21415 | -6/Extension | Destroyed 7 combat bots 21530 | -6/Extension | Rescued a captive Derelict 21570 | -6/Extension | Rescued a captive Derelict 21571 | -6/Extension | Rescued a captive Derelict 21701 | -6/Extension | Rescued A7 21915 | -6/Extension | Rescued a captive Derelict 21916 | -6/Extension | Rescued a captive Derelict 21974 | -6/Extension | Rescued a captive Derelict 22002 | -6/Extension | Rescued a captive Derelict 22039 | -6/Extension | Build established: Commander-Gunner 22058 | -6/Extension | Discovered exit to Factory (range 10) 22060 | -6/Extension | Discovered new exit (range 6) 22107 | -6/Extension | Entered Cetus 22107 | -6/Cetus | Accompanied by 15 allies (A7) 22112 | -6/Cetus | Acquired a Cetus Manufacturing Module code from A7 22121 | -6/Cetus | Spotted Cetus Guard 22122 | -6/Cetus | Spotted Cetus Guard 22123 | -6/Cetus | Spotted Cetus Guard 22128 | -6/Cetus | Spotted Cetus Guard 22135 | -6/Cetus | Allies destroyed Cetus Guard 22142 | -6/Cetus | Allies destroyed Cetus Guard 22144 | -6/Cetus | Allies destroyed Cetus Guard 22149 | -6/Cetus | Allies destroyed Cetus Guard 22226 | -6/Cetus | Started Cetus Manufacturing Module 22251 | -6/Cetus | Manufactured an Enhanced Grunt 22259 | -6/Cetus | Escorted A7 to Cetus Mainframe 22276 | -6/Cetus | Manufactured an Enhanced Grunt 22301 | -6/Cetus | Manufactured an Enhanced Grunt 22326 | -6/Cetus | Manufactured an Enhanced Grunt 22337 | -6/Cetus | Discovered new exit (range 22) 22351 | -6/Cetus | Manufactured an Enhanced Grunt 22368 | -6/Cetus | Spotted Cetus Guard 22369 | -6/Cetus | Spotted Cetus Guard 22370 | -6/Cetus | Spotted Cetus Guard 22376 | -6/Cetus | Spotted Cetus Guard 22378 | -6/Cetus | Allies destroyed Cetus Guard 22384 | -6/Cetus | Allies destroyed Cetus Guard 22385 | -6/Cetus | Allies destroyed Cetus Guard 22386 | -6/Cetus | Allies destroyed Cetus Guard 22390 | -6/Cetus | Discovered exit to Factory (range 22) 22412 | -6/Cetus | Met Revision 17 22501 | -6/Cetus | Entered Archives 22501 | -6/Archives | Accompanied by 15 allies (A7) 22506 | -6/Archives | Received a hacking code to weaken MAIN.C 22534 | -6/Archives | Unable to access archive contents 22541 | -6/Archives | Discovered exit to Factory (range 17) 22554 | -6/Archives | Unable to access archive contents 22607 | -6/Archives | Discovered new exit (range 15) 22644 | -6/Archives | Entered Hub_04(d) 22644 | -6/Hub_04(d) | Accompanied by 12 allies 22669 | -6/Hub_04(d) | Discovered exit to Factory (range 14) 22669 | -6/Hub_04(d) | Garrison activated, responded to threat 22739 | -6/Hub_04(d) | Network Hub disabled 22739 | -6/Hub_04(d) | Network Hub disabled 22994 | -6/Hub_04(d) | First assault squad dispatched 22994 | -6/Hub_04(d) | Spotted B-75 Beast 23184 | -6/Hub_04(d) | Found Unknown Protection 23243 | -6/Hub_04(d) | Build established: Scavenger-Tank 23395 | -6/Hub_04(d) | System corruption reached 10% 23413 | -6/Hub_04(d) | Entered Factory 23413 | -5/Factory | Evolved 2 slots: Propulsion x2 23578 | -5/Factory | Identified exit to Upper Caves 23788 | -5/Factory | Repaired Centrium Medium Armor Plating 23796 | -5/Factory | Found Exp. Targeting Computer 23811 | -5/Factory | Incoming investigation squad redirected 24120 | -5/Factory | Found Prototype Launcher 24120 | -5/Factory | Identified Mni. Smartbomb Launcher 24251 | -5/Factory | System corruption reached 10% 24313 | -5/Factory | First assault squad dispatched 24329 | -5/Factory | Incoming assault squad redirected 24532 | -5/Factory | Entered Upper Caves 24562 | -5/Upper Caves | Encountered a Warlord checkpoint 24655 | -5/Upper Caves | Spotted B-75 Beast 25138 | -5/Upper Caves | Learned Factory terminal intel 25140 | -5/Upper Caves | Learned Factory emergency access door positions 25206 | -5/Upper Caves | Build established: Mutant 25391 | -5/Upper Caves | Attracted the attention of an 0b10 checkpoint 25420 | -5/Upper Caves | Discovered new exit (range 12) 25485 | -5/Upper Caves | Entered another Upper Caves area 25581 | -5/Upper Caves | Discovered new exit (range 28) 25965 | -5/Upper Caves | Attracted the attention of an 0b10 checkpoint 25983 | -5/Upper Caves | Learned 4 Factory zone layouts 26040 | -5/Upper Caves | Discovered new exit (range 10) 26265 | -5/Upper Caves | Build established: Scavenger-Mutant 26301 | -5/Upper Caves | Entered Warlord 26354 | -5/Warlord | System corruption cleaned by Quarantine Array 26579 | -5/Warlord | Learned Factory garrison access intel 26579 | -5/Warlord | Learned Research recycling unit intel 26581 | -5/Warlord | Learned 4 Research zone layouts 26583 | -5/Warlord | Learned Quarantine trap positions 26583 | -5/Warlord | Learned Quarantine emergency access door positions 26583 | -5/Warlord | Learned Quarantine stockpile data 27160 | -5/Warlord | Warlord's base attacked by MAIN.C 27242 | -5/Warlord | Met Warlord 27257 | -5/Warlord | Opened Warlord's prototype stash 27277 | -5/Warlord | Found Prototype Device 27277 | -5/Warlord | Identified Thermal Barrier 27300 | -5/Warlord | Found Prototype Reactor 27460 | -5/Warlord | Found Prototype Energy Gun 27470 | -5/Warlord | Identified Vortex Rail 27472 | -5/Warlord | Found Vortex Rail 27510 | -5/Warlord | Warlord forces counterattacked 27544 | -5/Warlord | Spotted Executioner 27563 | -5/Warlord | Spotted B-86 Titan 27590 | -5/Warlord | Build established: Scavenger-Tank 27663 | -5/Warlord | Opened side exit 27699 | -5/Warlord | Discovered new exit (range 9) 27729 | -5/Warlord | Entered Proximity Caves 27729 | -4/Proximity Caves | Accompanied by 4 allies 27777 | -4/Proximity Caves | Attracted the attention of an 0b10 base 28052 | -4/Proximity Caves | Learned location of 1 exit from Research 28070 | -4/Proximity Caves | Identified exit to Factory 28258 | -4/Proximity Caves | Received a Behemoth hack from an annoying Tinkerer 28998 | -4/Proximity Caves | Spotted B-86 Titan 29040 | -4/Proximity Caves | Destroyed B-86 Titan 29348 | -4/Proximity Caves | Found Mni. Smartbomb Launcher 29667 | -4/Proximity Caves | Entered Factory 29667 | -4/Factory | Accompanied by 3 allies 29667 | -4/Factory | Evolved 2 slots: Power x1, Utility x1 29670 | -4/Factory | Loaded intel: 24 terminal locations 29671 | -4/Factory | Loaded intel: 3 garrison access locations 29951 | -4/Factory | Repaired Centrium Medium Armor Plating 29979 | -4/Factory | Incoming investigation squad redirected 30089 | -4/Factory | Repaired Broken Centrium Heavy Treads 30129 | -4/Factory | Build established: Scavenger-Mutant 30158 | -4/Factory | Identified exit to Upper Caves 30349 | -4/Factory | Discovered new exit (range 58) 30423 | -4/Factory | Identified Hvy. Reflective Plating 30423 | -4/Factory | Identified Vortex Chain Reactor 30534 | -4/Factory | Build established: Scavenger-Tank 30599 | -4/Factory | Incoming investigation squad redirected 30606 | -4/Factory | Fabricated Lrn. Tractor Beam (x2) 31167 | -4/Factory | First assault squad dispatched 31371 | -4/Factory | Fabricated H-66 Slayer? 31472 | -4/Factory | Incoming assault squad redirected 31495 | -4/Factory | Destroyed 9 combat bots 31576 | -4/Factory | Found Quantum Capacitor 31655 | -4/Factory | Discovered new exit (range 5) 31775 | -4/Factory | Found Prototype Processor 31775 | -4/Factory | Identified Exp. Terrain Scan Processor 31839 | -4/Factory | High security lockdown imminent 31919 | -4/Factory | High security lockdown engaged 31924 | -4/Factory | Entered Research 31924 | -3/Research | Evolved 2 slots: Utility x1, Weapon x1 31925 | -3/Research | Identified exit to Armory 31926 | -3/Research | Identified exit to Research 31927 | -3/Research | Loaded intel: 4 recycling unit locations 32083 | -3/Research | Discovered new exit (range 9) 32083 | -3/Research | Spotted B-90 Cyclops 32091 | -3/Research | Destroyed B-90 Cyclops 32124 | -3/Research | Revision forces began assault on 0b10 32210 | -3/Research | Met up with Revision 17++ 32624 | -3/Research | Research terminal network offline 32765 | -3/Research | Identified exit to Quarantine 32767 | -3/Research | Entered Quarantine 32768 | -3/Quarantine | Loaded intel: 10 trap records 32787 | -3/Quarantine | Build established: Scavenger-Mutant 32873 | -3/Quarantine | Found Alien Slashing Weapon 32873 | -3/Quarantine | Identified Sigix Broadsword 33118 | -3/Quarantine | Discovered exit to Research (range 16) 33285 | -3/Quarantine | Build established: Scavenger-Skirmisher 33532 | -3/Quarantine | Found Alien Artifact 33532 | -3/Quarantine | Identified Phase Armor 33571 | -3/Quarantine | Met incapacitated Sigix Warrior 33571 | -3/Quarantine | Lockdown squad dispatched 33580 | -3/Quarantine | Acquired the access code to the Sigix quarantine chamber 33586 | -3/Quarantine | Unlocked Sigix quarantine chamber 33643 | -3/Quarantine | Build established: Scavenger-Mutant 33689 | -3/Quarantine | Spotted Lightning 33689 | -3/Quarantine | Destroyed Lightning 33691 | -3/Quarantine | Spotted Lightning 33698 | -3/Quarantine | Destroyed Lightning 33699 | -3/Quarantine | Scanned by Researcher 33701 | -3/Quarantine | System corruption reached 10% 33715 | -3/Quarantine | Destroyed Lightning 33793 | -3/Quarantine | First assault squad dispatched 33848 | -3/Quarantine | Destroyed 13 combat bots 33874 | -3/Quarantine | Incoming assault squad redirected 33927 | -3/Quarantine | Destroyed 8 combat bots 33959 | -3/Quarantine | Found Alien Energy Cannon 34133 | -3/Quarantine | Found Alien Artifact 34133 | -3/Quarantine | Identified Phase Redirector 34358 | -3/Quarantine | Incoming assault squad redirected 34578 | -3/Quarantine | Incoming assault squad redirected 34592 | -3/Quarantine | Entered Research 34592 | -2/Research | Warlord forces began assault on 0b10 34592 | -2/Research | Evolved 2 slots: Utility x2 34593 | -2/Research | Identified exit to Testing 34702 | -2/Research | Research machine network offline 34976 | -2/Research | Met up with Warlord 35016 | -2/Research | Borebot progress halted 35128 | -2/Research | Borebot progress halted 35203 | -2/Research | Borebot progress halted 35539 | -2/Research | Spotted Executioner 35546 | -2/Research | Spotted Striker 35593 | -2/Research | Destroyed Striker 35628 | -2/Research | Destroyed Executioner 35634 | -2/Research | Spotted Striker 35658 | -2/Research | Found Prototype Device 35668 | -2/Research | Destroyed 9 combat bots 35672 | -2/Research | Found Prototype Processor 35672 | -2/Research | Identified Exp. Core Analyzer 35678 | -2/Research | Identified Adv. Kinecellerator 35680 | -2/Research | Found Exp. Targeting Computer 35798 | -2/Research | Found Prototype Device 35798 | -2/Research | Identified Beam Splitter 35801 | -2/Research | Found Beam Splitter 35862 | -2/Research | Spotted Executioner 35863 | -2/Research | Destroyed Executioner 36082 | -2/Research | Entered Testing 36093 | -2/Testing | Spotted Alpha 7 36113 | -2/Testing | Spotted 22-IU2(L) 36114 | -2/Testing | Destroyed Alpha 7 36172 | -2/Testing | Destroyed 22-IU2(L) 36380 | -2/Testing | First assault squad dispatched 36480 | -2/Testing | Destroyed 10 combat bots 36497 | -2/Testing | Discovered new exit (range 3) 36504 | -2/Testing | Identified exit to Access 36509 | -2/Testing | Found Prototype Launcher 36509 | -2/Testing | Identified Hellfire Missile Launcher 36513 | -2/Testing | Found Hellfire Missile Launcher 36518 | -2/Testing | Found Hellfire Missile Launcher 36594 | -2/Testing | Found Prototype Launcher 36594 | -2/Testing | Identified Z-bomb Delivery System 36609 | -2/Testing | Identified Core Cannon 36715 | -2/Testing | Found Prototype Hackware 36975 | -2/Testing | Incoming assault squad redirected 37035 | -2/Testing | Destroyed 10 combat bots 37202 | -2/Testing | Spotted Striker 37245 | -2/Testing | Found Prototype Energy Cannon 37600 | -2/Testing | Incoming assault squad redirected 37605 | -2/Testing | Build established: Mutant 37605 | -2/Testing | Incoming assault squad redirected 37608 | -2/Testing | Incoming assault squad redirected 37720 | -2/Testing | Protovariant out of control (PY-CCF8XZY3UU) 37720 | -2/Testing | Unleashed a protovariant (PY-CCF8XZY3UU) 37750 | -2/Testing | Spotted PY-CCF8XZY3UU 37774 | -2/Testing | Spotted Investigator 37782 | -2/Testing | Destroyed Investigator 37790 | -2/Testing | High security lockdown imminent 37870 | -2/Testing | High security lockdown engaged 37926 | -2/Testing | System corruption reached 10% 37960 | -2/Testing | Destroyed 21 combat bots 37962 | -2/Testing | Crushed by falling debris 38001 | -2/Testing | Spotted Striker 38008 | -2/Testing | Spotted Investigator 38011 | -2/Testing | Destroyed Investigator 38011 | -2/Testing | Destroyed Striker 38042 | -2/Testing | Destroyed 20 combat bots 38077 | -2/Testing | Entered Access 38077 | -1/Access | Evolved 2 slots: Utility x1, Weapon x1 38137 | -1/Access | High security lockdown imminent 38217 | -1/Access | High security lockdown engaged 38322 | -1/Access | Spotted Striker 38342 | -1/Access | Destroyed Striker 38377 | -1/Access | Spotted Investigator 38383 | -1/Access | Destroyed Investigator 38422 | -1/Access | Destroyed 27 combat bots 38505 | -1/Access | Destroyed 8 combat bots 38509 | -1/Access | Spotted Striker 38535 | -1/Access | Destroyed Striker 38562 | -1/Access | Destroyed 8 combat bots 38616 | -1/Access | Garrison activated, responded to threat 38619 | -1/Access | Lost 6 parts (3n3u) 38645 | -1/Access | Destroyed 15 combat bots 38706 | -1/Access | Spotted Executioner 38708 | -1/Access | Spotted Executioner 38712 | -1/Access | Destroyed Executioner 38720 | -1/Access | Destroyed Executioner 38727 | -1/Access | Spotted Striker 38780 | -1/Access | Lost 5 parts (2p1n1u1w) 38783 | -1/Access | Spotted Executioner 38786 | -1/Access | Destroyed Executioner 38814 | -1/Access | Destroyed 27 combat bots 38843 | -1/Access | Destroyed Striker 38918 | -1/Access | Spotted Executioner 38922 | -1/Access | Destroyed Executioner 38927 | -1/Access | Spotted Investigator 38935 | -1/Access | Identified Hpw. Disruptor Cannon 38938 | -1/Access | System corruption reached 10% 38963 | -1/Access | Destroyed Investigator 38983 | -1/Access | Released all parts (7) 38988 | -1/Access | Destroyed 12 combat bots 39001 | -1/Access | Core integrity fell below 50% 39019 | -1/Access | Core integrity fell below 20% 39035 | -1/Access | Lost 14 parts (1p3n4u6w) 39048 | -1/Access | Spotted B-99 Colossus 39048 | -1/Access | Destroyed by B-99 Colossus with Multirail Last Messages --------------- 39009_ Stasis bubble strength at 44. 39009_ R-10 Processor collects Imp. Armor Integrity Analyzer. 39010_ Stasis bubble strength at 38. 39011_ Stasis bubble strength at 32. 39012_ Stasis bubble strength at 26. 39013_ G-73 Enforcer destroyed. 39013_ Stasis bubble strength at 20. 39014_ Stasis bubble strength at 14. 39015_ Stasis bubble strength at 8. 39016_ Stasis bubble strength at 2. 39017_ Stasis bubble bursts. 39018_ R-10 Processor collects Unknown Energy Gun. 39021_ R-10 Processor collects Antimatter Cannon. 39023_ Acquired 57 matter. 39024_ Acquired 37 matter. 39026_ System corrupted: Matter fused (-10). 39048_ Slug penetrates Wall. 39048_ Penetrated by Slug. 39048_ Slug penetrates Wall. 39048_ Penetrated by Slug. Map ----- +----------------------------------------------------+ | ?????????????????????????????????????????????????? | | ?????????????????????????????????????????????????? | | ?????????????????????????????????????????????????? | | ?????????????????????????????????????????????????? | | ?????????????????????????????????????????????????? | | ?????????????????????????????????????????????????? | | ?????????????????????????????????????????????????? | | ?????????????????????????????????????????????????? | | ?????????????????????????????????????????????????? | | ?????????????????????????????????????????????????? | | ??????????????????????? ???????????????????????? | | ????????????????????? ???????????????????????? | | ????????????????????? ???????????????????????? | | ????????????????????? ???????????????????????? | | ????????????????????? ???????????????????????? | | ????????????????????? ???????????????????????? | | ?????????????? ????? ???????????????????????? | | ????????????? ? ? #??????????????????????? | | ???????????? "" +??????????????????????? | | ???????????? "" #??????????????????????? | | ???????????? T" #??????????????????????? | | ??????????? [ "" #??????????????????????? | | ??????????? "" #??????????????????????? | | ?????????? #??????????????????????? | | ?????????? w k #??????????????????????? | | ?????????? @#??????????????????????? | | ?????????????????###BB;# #??????????????????????? | | ???????????????????????# #??????????????????????? | | ???????????????????????# #??????????????????????? | | ???????????????????????# #??????????????????????? | | ???????????????????????#k #??????????????????????? | | ???????????????????????# #??????????????????????? | | ???????????????????????# #??????????????????????? | | ???????????????????????#kk#??????????????????????? | | ???????????????????????# #??????????????????????? | | ???????????????????????# #?????????????? ???????? | | ?????????#######???????# #?????? ?????? ????? | | ????????? ! ???????# #?????? ?????? ??? | | ????????? ?###### ############## #?? | | ?????????? " ?+ #?? | | ???????????"""" # [ # | | ???????????"""" # % # | | ???????????""""" + % % # | | ???????????"""" # = # | | ?????????? " # # | | ???????? ?# ! # | | ??????? = ?# #################### ! | | ?????? ??# #?????# """T # | | ?????# ??# #?????# "" # | | ?????##########???# #?????# | +----------------------------------------------------+ Best States ------------- Heat Dissipation 142 Coolant Potential 100 Energy Generation 55 Energy Capacity 1050 Matter Stores 455 Matter Capacity 550 Sight Range 22 Robot Scan Range 16 Terrain Scan Range 20 Terrain Scan Density 1010 Jamming Range 16 Armor Coverage 1800 Resistance: KI 30 Resistance: TH 75 Core Shielding 30 Point Defense Rating 160 Weapon Cycling 25 Phase Shifting 15 Evasion (%) 55 Targeting Accuracy 24 Target Analysis 6 Core Analysis 8 Recoil Reduction 6 Kinecelleration 50 Offensive Hacking 24 Defensive Hacking 12 Item Schematics ----------------- Combat Drone Bay | -7/Data Miner | Free Lgt. Regenerative Plating | -7/Data Miner | Free Cld. Cesium-ion Thruster | -7/Data Miner | Free Exp. Targeting Computer | -7/Data Miner | Free Imp. Heavy Machine Gun | -7/Data Miner | Free Antigrav System | -7/Data Miner | Free Imp. Recalibrator | -7/Data Miner | Free Hvy. Shock Bomb Launcher | -7/Data Miner | Free Adv. System Restoration Module | -7/Data Miner | Free Adv. Target Analyzer | -7/Data Miner | Free Matter Compressor | -7/Data Miner | Free Lrn. Tractor Beam | -5/Factory | Hacked Micro-nuke Launcher | -4/Factory | Hacked Imp. KE Penetrator | -3/Quarantine | Archive Lrn. Phase Cannon | -3/Quarantine | Archive Prc. Energy Filter | -3/Quarantine | Archive Thermal Defense Suite | -3/Quarantine | Archive Exp. Heat Sink | -2/Testing | Archive Cld. Phase Cannon | -2/Testing | Archive Exp. System Shield | -2/Testing | Archive Exp. Shock Absorption System | -2/Testing | Archive Com. Linear Accelerator | -2/Testing | Archive Tesla Bomb Launcher | -2/Testing | Archive Robot Schematics ------------------ M-28 Smith | -7/Data Miner | Free B-48 Gladiator | -7/Data Miner | Free D-63 Destroyer | -7/Data Miner | Free L-41 Fighter | -7/Data Miner | Free H-66 Slayer | -7/Data Miner | Free S-43 Plague | -3/Quarantine | Archive A-27 Freighter | -3/Quarantine | Archive B-74 Champion | -3/Quarantine | Archive R-10 Processor | -2/Testing | Archive R-06 Scavenger | -2/Testing | Archive Fabricated ------------ Imp. Phase Shifter | x1 | -7/Factory | Preloaded Lrn. Tractor Beam | x2 | -4/Factory H-66 Slayer | x2 | -4/Factory Alien Tech Used ----------------- Sigix Broadsword Phase Armor Phase Redirector Achievements -------------- Most Wanted Challenges ------------ None Game ------ Seed PropulsionBombTrap Manual? 0 Play Time 08:39:33 Cumulative 741.9 hours Start 2022.06.15 @ 22:53:41 End 2022.06.18 @ 23:38:48 Sessions 13 Manual Loads 0 Difficulty Rogue Special Mode None Game No. 179 Rogue 147 Adventurer 31 Explorer 1 Win Type - Total 36 Types 26/0/5/4/0/0/1/0/0 Lore% 84 Gallery% 86 Achievement% 73 Wizard Run 0 Options --------- ASCII 0 Keyboard 0 Movement Arrows Keybinds 0 Fullscreen 1 Font 20/Terminus Map View 66x50 Tactical HUD 1 Map Filters NONE Filters NONE Steam 1 RUN: 0c5fe892-6814-4d57-899d-88ebbe50e333